[Event "*** SCC Grand Prix: Titled Tuesday Blitz"]
[Site "Chess.com"]
[Date "2020.06.23"]
[Round "3"]
[White "Shield12"]
[Black "Baby_Legs"]
[Result "1-0"]
[WhiteElo "2839"]
[BlackElo "2621"]
[TimeControl "180+1"]
[EndTime "10:30:06 PDT"]
[Termination "Shield12 won by resignation"]

1. e4 {[%clk 0:03:00.9]} 1... c6 {[%clk 0:03:00]} 2. Nf3 {[%clk 0:03:00.7]} 2...
d5 {[%clk 0:03:00.1]} 3. d3 {[%clk 0:03:01.2]} 3... g6 {[%clk 0:02:59.3]} 4.
Nbd2 {[%clk 0:03:00]} 4... Bg7 {[%clk 0:02:59.6]} 5. g3 {[%clk 0:03:00.5]} 5...
a5 {[%clk 0:02:59.8]} 6. a4 {[%clk 0:02:40.2]} 6... Nf6 {[%clk 0:02:59.1]} 7.
Bg2 {[%clk 0:02:38.8]} 7... O-O {[%clk 0:02:59.1]} 8. O-O {[%clk 0:02:36.4]}
8... Na6 {[%clk 0:02:59.2]} 9. Re1 {[%clk 0:02:33.5]} 9... Nc5 {[%clk
0:02:53.8]} 10. e5 {[%clk 0:02:31.6]} 10... Ne8 {[%clk 0:02:52.2]} 11. d4 {[%clk
0:02:30.5]} 11... Ne6 {[%clk 0:02:51.9]} 12. Nb3 {[%clk 0:02:24.8]} 12... b6
{[%clk 0:02:50.7]} 13. h4 {[%clk 0:02:20.7]} 13... h5 {[%clk 0:02:41.5]} 14. Be3
{[%clk 0:02:14.4]} 14... N8c7 {[%clk 0:02:30.4]} 15. c3 {[%clk 0:02:01.8]} 15...
Rb8 {[%clk 0:02:24.3]} 16. Nfd2 {[%clk 0:01:56.8]} 16... f5 {[%clk 0:02:15.8]}
17. exf6 {[%clk 0:01:49.8]} 17... exf6 {[%clk 0:02:11.8]} 18. Nc1 {[%clk
0:01:44.6]} 18... Ba6 {[%clk 0:02:09.8]} 19. Bf1 {[%clk 0:01:32.6]} 19... Bxf1
{[%clk 0:02:07.6]} 20. Kxf1 {[%clk 0:01:31.8]} 20... f5 {[%clk 0:02:04.9]} 21.
Nd3 {[%clk 0:01:30.6]} 21... c5 {[%clk 0:01:49.2]} 22. Nf3 {[%clk 0:01:24.6]}
22... Qd6 {[%clk 0:01:35.7]} 23. Bf4 {[%clk 0:01:14.2]} 23... Nxf4 {[%clk
0:01:31.2]} 24. Nxf4 {[%clk 0:01:15.1]} 24... Rfe8 {[%clk 0:01:31]} 25. Qd3
{[%clk 0:01:14.6]} 25... Re4 {[%clk 0:01:27.7]} 26. Ng5 {[%clk 0:01:12.6]} 26...
cxd4 {[%clk 0:01:23.8]} 27. Nxe4 {[%clk 0:00:58.1]} 27... fxe4 {[%clk
0:01:22.8]} 28. Qd2 {[%clk 0:00:54.2]} 28... d3 {[%clk 0:01:21.8]} 29. Nxd3
{[%clk 0:00:50.9]} 29... exd3 {[%clk 0:01:20.6]} 30. Qxd3 {[%clk 0:00:51.8]}
30... Rf8 {[%clk 0:01:19.2]} 31. Rad1 {[%clk 0:00:49.7]} 31... Kh7 {[%clk
0:01:16.8]} 32. Re2 {[%clk 0:00:44.9]} 32... Rf5 {[%clk 0:01:13.8]} 33. Kg2
{[%clk 0:00:41.5]} 33... Ne6 {[%clk 0:01:12.1]} 34. b4 {[%clk 0:00:37.4]} 34...
axb4 {[%clk 0:01:08.3]} 35. cxb4 {[%clk 0:00:38.3]} 35... Nd4 {[%clk 0:01:08]}
36. Re3 {[%clk 0:00:25.2]} 36... Qxb4 {[%clk 0:01:07.3]} 37. Qd2 {[%clk
0:00:25]} 37... Qxd2 {[%clk 0:01:02.1]} 38. Rxd2 {[%clk 0:00:25.1]} 38... Nc6
{[%clk 0:00:56.9]} 39. Re6 {[%clk 0:00:21.5]} 39... Na5 {[%clk 0:00:56.9]} 40.
Re7 {[%clk 0:00:18.2]} 40... Nc4 {[%clk 0:00:53.3]} 41. Rde2 {[%clk 0:00:18.5]}
41... Kg8 {[%clk 0:00:47.2]} 42. Rc7 {[%clk 0:00:18.3]} 42... Rf7 {[%clk
0:00:43]} 43. Re8+ {[%clk 0:00:17.7]} 43... Bf8 {[%clk 0:00:42.5]} 44. Rc6
{[%clk 0:00:17.6]} 44... Kg7 {[%clk 0:00:38.3]} 45. Ree6 {[%clk 0:00:17.6]}
45... Kh7 {[%clk 0:00:34.8]} 46. Rxg6 {[%clk 0:00:15]} 46... Ne5 {[%clk
0:00:34.4]} 47. Rgf6 {[%clk 0:00:15.2]} 47... Bc5 {[%clk 0:00:26.6]} 48. Rxf7+
{[%clk 0:00:09.3]} 48... Nxf7 {[%clk 0:00:27.5]} 49. a5 {[%clk 0:00:10.1]} 49...
Ne5 {[%clk 0:00:22.5]} 50. Rc7+ {[%clk 0:00:10.2]} 50... Kg6 {[%clk 0:00:22.7]}
51. a6 {[%clk 0:00:11.1]} 51... Bd6 {[%clk 0:00:21.6]} 52. a7 {[%clk 0:00:10.3]}
52... Bxc7 {[%clk 0:00:21.7]} 53. a8=Q {[%clk 0:00:10.9]} 53... Nf7 {[%clk
0:00:20.8]} 54. Qxd5 {[%clk 0:00:10.6]} 54... Bd6 {[%clk 0:00:20.5]} 55. Qe6+
{[%clk 0:00:09.6]} 55... Kg7 {[%clk 0:00:20.5]} 56. f4 {[%clk 0:00:10.2]} 56...
b5 {[%clk 0:00:20.9]} 57. f5 {[%clk 0:00:10.6]} 57... b4 {[%clk 0:00:21.3]} 58.
Qg6+ {[%clk 0:00:08.8]} 58... Kf8 {[%clk 0:00:21.5]} 59. Qxh5 {[%clk 0:00:08.5]}
59... b3 {[%clk 0:00:20.1]} 60. Qe2 {[%clk 0:00:08.3]} 60... Be5 {[%clk
0:00:19.5]} 61. Qb5 {[%clk 0:00:07.4]} 61... b2 {[%clk 0:00:19.4]} 62. Kf3
{[%clk 0:00:07.5]} 62... Nd6 {[%clk 0:00:18]} 63. Qxe5 {[%clk 0:00:06.8]} 63...
Nc4 {[%clk 0:00:18.1]} 64. Qf6+ {[%clk 0:00:05.3]} 1-0

[Event "*** SCC Grand Prix: Titled Tuesday Blitz"]
[Site "Chess.com"]
[Date "2020.06.23"]
[Round "3"]
[White "tamarozi99"]
[Black "chessmaugli"]
[Result "0-1"]
[WhiteElo "2066"]
[BlackElo "2319"]
[TimeControl "180+1"]
[EndTime "10:30:06 PDT"]
[Termination "chessmaugli won on time"]

1. e4 {[%clk 0:03:00.9]} 1... c5 {[%clk 0:02:58.9]} 2. Nf3 {[%clk 0:03:00.9]}
2... Nc6 {[%clk 0:02:58.6]} 3. d4 {[%clk 0:03:00.5]} 3... cxd4 {[%clk
0:02:58.3]} 4. Nxd4 {[%clk 0:03:01.4]} 4... Nf6 {[%clk 0:02:58.2]} 5. Nc3 {[%clk
0:03:01.5]} 5... e5 {[%clk 0:02:58.4]} 6. Ndb5 {[%clk 0:03:01.6]} 6... d6 {[%clk
0:02:58.3]} 7. Bg5 {[%clk 0:03:00.1]} 7... a6 {[%clk 0:02:58.2]} 8. Na3 {[%clk
0:03:00.2]} 8... Be6 {[%clk 0:02:57.3]} 9. Nc4 {[%clk 0:02:54.6]} 9... Rb8
{[%clk 0:02:56.5]} 10. a4 {[%clk 0:02:51]} 10... Nd4 {[%clk 0:02:51.7]} 11. a5
{[%clk 0:02:42.9]} 11... Be7 {[%clk 0:02:49.9]} 12. Be3 {[%clk 0:02:24.7]} 12...
Rc8 {[%clk 0:02:22.5]} 13. Nb6 {[%clk 0:02:13.6]} 13... Rc6 {[%clk 0:02:12.8]}
14. Bxd4 {[%clk 0:02:07.7]} 14... exd4 {[%clk 0:02:12.4]} 15. Qxd4 {[%clk
0:02:07.3]} 15... O-O {[%clk 0:02:09.2]} 16. Be2 {[%clk 0:01:58]} 16... Nd7
{[%clk 0:02:05.9]} 17. Ncd5 {[%clk 0:01:31.6]} 17... Nxb6 {[%clk 0:01:58.6]} 18.
Nxb6 {[%clk 0:01:26.1]} 18... Rxc2 {[%clk 0:01:54.9]} 19. Bd3 {[%clk 0:01:15.7]}
19... Bf6 {[%clk 0:01:52.1]} 20. Qe3 {[%clk 0:01:12.5]} 20... Rxb2 {[%clk
0:01:48.6]} 21. O-O {[%clk 0:01:12.4]} 21... Rxb6 {[%clk 0:01:40.8]} 22. axb6
{[%clk 0:01:11.5]} 22... Bxa1 {[%clk 0:01:39.4]} 23. Rxa1 {[%clk 0:01:12.4]}
23... Qd7 {[%clk 0:01:35.6]} 24. Rb1 {[%clk 0:01:00.3]} 24... Rc8 {[%clk
0:01:28.2]} 25. Qd4 {[%clk 0:00:53.2]} 25... Qc6 {[%clk 0:01:22.3]} 26. h3
{[%clk 0:00:46.2]} 26... f6 {[%clk 0:01:15.6]} 27. Kh2 {[%clk 0:00:29.6]} 27...
Qc5 {[%clk 0:01:13]} 28. Qxc5 {[%clk 0:00:26.7]} 28... dxc5 {[%clk 0:01:11.6]}
29. Kg3 {[%clk 0:00:23.8]} 29... Kf7 {[%clk 0:01:09.9]} 30. Kf4 {[%clk
0:00:23.5]} 30... Ke7 {[%clk 0:01:08.7]} 31. g4 {[%clk 0:00:20.2]} 31... g5+
{[%clk 0:01:07.5]} 32. Ke3 {[%clk 0:00:19.6]} 32... Kd6 {[%clk 0:01:07.2]} 33.
f4 {[%clk 0:00:19.6]} 33... gxf4+ {[%clk 0:01:04.5]} 34. Kxf4 {[%clk 0:00:19.8]}
34... c4 {[%clk 0:01:04.4]} 35. Bc2 {[%clk 0:00:19.4]} 35... Kc5 {[%clk
0:01:02.6]} 36. e5 {[%clk 0:00:16.8]} 36... fxe5+ {[%clk 0:01:00.8]} 37. Kxe5
{[%clk 0:00:17.1]} 37... Re8 {[%clk 0:00:55.3]} 38. Kf6 {[%clk 0:00:17.3]} 38...
Bd5 {[%clk 0:00:51.2]} 39. Bxh7 {[%clk 0:00:16.9]} 39... c3 {[%clk 0:00:49.8]}
40. g5 {[%clk 0:00:15.5]} 40... Re2 {[%clk 0:00:42.5]} 41. Rc1 {[%clk
0:00:15.1]} 41... Kd4 {[%clk 0:00:40.6]} 42. Bf5 {[%clk 0:00:12.7]} 42... Rf2
{[%clk 0:00:38.7]} 43. Kg6 {[%clk 0:00:09.6]} 43... Ke5 {[%clk 0:00:34.4]} 44.
Bb1 {[%clk 0:00:08]} 44... Bf7+ {[%clk 0:00:31.6]} 45. Kg7 {[%clk 0:00:07.6]}
45... Bd5 {[%clk 0:00:30.4]} 46. Rxc3 {[%clk 0:00:06.8]} 46... Rf1 {[%clk
0:00:29.4]} 47. Bd3 {[%clk 0:00:05.6]} 47... Rg1 {[%clk 0:00:28.4]} 48. g6
{[%clk 0:00:04.8]} 48... Rg3 {[%clk 0:00:27]} 49. Rc7 {[%clk 0:00:04.7]} 49...
Rxd3 {[%clk 0:00:25.2]} 50. h4 {[%clk 0:00:05.1]} 50... Rh3 {[%clk 0:00:23.5]}
51. Re7+ {[%clk 0:00:03.1]} 51... Kd6 {[%clk 0:00:21.7]} 52. Re8 {[%clk
0:00:02.8]} 52... Rxh4 {[%clk 0:00:21.3]} 53. Kf6 {[%clk 0:00:03]} 53... Rf4+
{[%clk 0:00:20.2]} 54. Kg5 {[%clk 0:00:03.4]} 54... Rf1 {[%clk 0:00:19.8]} 55.
g7 {[%clk 0:00:03.3]} 55... Rg1+ {[%clk 0:00:20.1]} 56. Kh6 {[%clk 0:00:03.4]}
56... Kd7 {[%clk 0:00:20.3]} 57. Re5 {[%clk 0:00:02.1]} 57... Bf7 {[%clk
0:00:19.6]} 58. Re3 {[%clk 0:00:02.4]} 58... Rg4 {[%clk 0:00:17.8]} 59. Rd3+
{[%clk 0:00:02.3]} 59... Ke6 {[%clk 0:00:17]} 60. Rd8 {[%clk 0:00:02.2]} 60...
Ke7 {[%clk 0:00:16.3]} 61. Rb8 {[%clk 0:00:01.7]} 61... Rg6+ {[%clk 0:00:15.8]}
62. Kh7 {[%clk 0:00:01.4]} 62... Rg2 {[%clk 0:00:15.5]} 63. g8=Q {[%clk
0:00:01.3]} 63... Bxg8+ {[%clk 0:00:13.9]} 0-1

[Event "*** SCC Grand Prix: Titled Tuesday Blitz"]
[Site "Chess.com"]
[Date "2020.06.23"]
[Round "3"]
[White "ChessQueen"]
[Black "FairChess_on_YouTube"]
[Result "0-1"]
[WhiteElo "2702"]
[BlackElo "2987"]
[TimeControl "180+1"]
[EndTime "10:30:11 PDT"]
[Termination "FairChess_on_YouTube won on time"]

1. e4 {[%clk 0:03:00.9]} 1... c5 {[%clk 0:02:59.5]} 2. c3 {[%clk 0:03:00.6]}
2... Nf6 {[%clk 0:02:58.8]} 3. e5 {[%clk 0:03:00.7]} 3... Nd5 {[%clk 0:02:58.9]}
4. d4 {[%clk 0:03:01.4]} 4... cxd4 {[%clk 0:02:58.8]} 5. Nf3 {[%clk 0:03:02.3]}
5... e6 {[%clk 0:02:59]} 6. cxd4 {[%clk 0:03:02.4]} 6... b6 {[%clk 0:02:59.5]}
7. Nc3 {[%clk 0:02:52.2]} 7... Bb7 {[%clk 0:02:59.7]} 8. Bd3 {[%clk 0:02:48.9]}
8... Na6 {[%clk 0:02:59.9]} 9. O-O {[%clk 0:02:45.6]} 9... Nab4 {[%clk
0:02:59.3]} 10. Bb1 {[%clk 0:02:36.9]} 10... Nxc3 {[%clk 0:02:59.2]} 11. bxc3
{[%clk 0:02:37.3]} 11... Nd5 {[%clk 0:02:59.7]} 12. Bd2 {[%clk 0:02:32.8]} 12...
Rc8 {[%clk 0:02:59.6]} 13. Qb3 {[%clk 0:02:21.6]} 13... Ba6 {[%clk 0:02:57.6]}
14. Re1 {[%clk 0:02:13.7]} 14... Bc4 {[%clk 0:02:49.9]} 15. Qd1 {[%clk
0:02:13.6]} 15... Be7 {[%clk 0:02:49.3]} 16. Be4 {[%clk 0:02:11.6]} 16... O-O
{[%clk 0:02:38.1]} 17. Qb1 {[%clk 0:02:06.7]} 17... h6 {[%clk 0:02:35.3]} 18.
Qc1 {[%clk 0:02:00]} 18... f5 {[%clk 0:02:27.5]} 19. exf6 {[%clk 0:01:58]} 19...
Nxf6 {[%clk 0:02:23.7]} 20. Ne5 {[%clk 0:01:55]} 20... Nxe4 {[%clk 0:01:01.8]}
21. Rxe4 {[%clk 0:01:55.9]} 21... Rf5 {[%clk 0:01:02]} 22. Bxh6 {[%clk 0:01:24]}
22... Bf6 {[%clk 0:00:53.7]} 23. Be3 {[%clk 0:01:11.5]} 23... Bd5 {[%clk
0:00:47.2]} 24. Rg4 {[%clk 0:01:11.5]} 24... Qc7 {[%clk 0:00:31.6]} 25. h4
{[%clk 0:00:50.4]} 25... Qxc3 {[%clk 0:00:28.6]} 26. Qxc3 {[%clk 0:00:46.7]}
26... Rxc3 {[%clk 0:00:28.3]} 27. Nxd7 {[%clk 0:00:47.3]} 27... Bd8 {[%clk
0:00:15.5]} 28. Bh6 {[%clk 0:00:40.7]} 28... Rf7 {[%clk 0:00:14.8]} 29. Ne5
{[%clk 0:00:41]} 29... Rfc7 {[%clk 0:00:15.1]} 30. a4 {[%clk 0:00:34.5]} 30...
Kh7 {[%clk 0:00:09.5]} 31. Bf4 {[%clk 0:00:33.6]} 31... Bf6 {[%clk 0:00:08.9]}
32. Ng6 {[%clk 0:00:28.8]} 32... Rc8 {[%clk 0:00:07.5]} 33. Be5 {[%clk
0:00:26.2]} 33... Rc1+ {[%clk 0:00:07]} 34. Rxc1 {[%clk 0:00:25.4]} 34... Rxc1+
{[%clk 0:00:07.9]} 35. Kh2 {[%clk 0:00:26.1]} 35... Rc2 {[%clk 0:00:08.5]} 36.
Kg3 {[%clk 0:00:24.9]} 36... Ra2 {[%clk 0:00:07]} 37. Nf4 {[%clk 0:00:18.1]}
37... Rxa4 {[%clk 0:00:04.2]} 38. Nxd5 {[%clk 0:00:17.4]} 38... exd5 {[%clk
0:00:04.3]} 39. Bxf6 {[%clk 0:00:16.3]} 39... gxf6 {[%clk 0:00:04.4]} 40. h5
{[%clk 0:00:16.9]} 40... a5 {[%clk 0:00:04]} 41. Rg6 {[%clk 0:00:17.2]} 41...
Rxd4 {[%clk 0:00:04.1]} 42. Rxf6 {[%clk 0:00:17.6]} 42... Rb4 {[%clk 0:00:04.6]}
43. f4 {[%clk 0:00:14]} 43... a4 {[%clk 0:00:04.9]} 44. Kg4 {[%clk 0:00:14.1]}
44... a3 {[%clk 0:00:05]} 45. Kg5 {[%clk 0:00:14.4]} 45... Ra4 {[%clk
0:00:04.5]} 46. Rf7+ {[%clk 0:00:12.6]} 46... Kg8 {[%clk 0:00:04.7]} 47. Kg6
{[%clk 0:00:13.1]} 47... Ra6 {[%clk 0:00:04.6]} 48. f5 {[%clk 0:00:08.5]} 48...
b5+ {[%clk 0:00:04]} 49. f6 {[%clk 0:00:09.2]} 49... a2 {[%clk 0:00:04.4]} 50.
Rg7+ {[%clk 0:00:09.2]} 50... Kh8 {[%clk 0:00:04.4]} 51. Rc7 {[%clk 0:00:06.7]}
51... Rxf6+ {[%clk 0:00:03.3]} 52. Kxf6 {[%clk 0:00:06.5]} 52... a1=Q+ {[%clk
0:00:02.9]} 53. Kg6 {[%clk 0:00:06.9]} 53... Qb1+ {[%clk 0:00:02.9]} 54. Kh6
{[%clk 0:00:06.1]} 54... Qf5 {[%clk 0:00:02.8]} 55. Rb7 {[%clk 0:00:02.4]} 55...
Qf8+ {[%clk 0:00:03]} 56. Kg6 {[%clk 0:00:02.3]} 56... Qg8+ {[%clk 0:00:03.3]}
57. Kh6 {[%clk 0:00:02.7]} 57... Qf8+ {[%clk 0:00:03.5]} 58. Kg6 {[%clk
0:00:03.1]} 58... Qe8+ {[%clk 0:00:03.8]} 59. Kh6 {[%clk 0:00:03.5]} 59... Qe3+
{[%clk 0:00:03.7]} 60. Kg6 {[%clk 0:00:03.2]} 60... Qe4+ {[%clk 0:00:04]} 61.
Kh6 {[%clk 0:00:03.7]} 61... Qf4+ {[%clk 0:00:04.2]} 62. Kg6 {[%clk 0:00:03.7]}
62... Qg4+ {[%clk 0:00:04.6]} 63. Kh6 {[%clk 0:00:04]} 63... Qe6+ {[%clk
0:00:05]} 64. Kg5 {[%clk 0:00:04.4]} 64... d4 {[%clk 0:00:04.8]} 65. h6 {[%clk
0:00:02]} 65... Qe5+ {[%clk 0:00:04.3]} 0-1

[Event "*** SCC Grand Prix: Titled Tuesday Blitz"]
[Site "Chess.com"]
[Date "2020.06.23"]
[Round "3"]
[White "Ze-Pequeno"]
[Black "Piotrek1979"]
[Result "0-1"]
[WhiteElo "2157"]
[BlackElo "2349"]
[TimeControl "180+1"]
[EndTime "10:30:11 PDT"]
[Termination "Piotrek1979 won by resignation"]

1. e4 {[%clk 0:03:00.9]} 1... Nc6 {[%clk 0:02:58.7]} 2. Nc3 {[%clk 0:02:58.3]}
2... Nf6 {[%clk 0:02:54.8]} 3. Nf3 {[%clk 0:02:56.7]} 3... d6 {[%clk 0:02:52.4]}
4. d4 {[%clk 0:02:55.3]} 4... Bg4 {[%clk 0:02:52]} 5. Be2 {[%clk 0:02:38.9]}
5... e6 {[%clk 0:02:51.8]} 6. Be3 {[%clk 0:02:34.9]} 6... d5 {[%clk 0:02:50.8]}
7. e5 {[%clk 0:02:32.9]} 7... Nd7 {[%clk 0:02:49]} 8. a3 {[%clk 0:02:28.4]} 8...
Be7 {[%clk 0:02:46.4]} 9. O-O {[%clk 0:02:25.2]} 9... O-O {[%clk 0:02:46]} 10.
h3 {[%clk 0:02:07.6]} 10... Bf5 {[%clk 0:02:45]} 11. Qd2 {[%clk 0:01:55.9]}
11... Nb6 {[%clk 0:02:43.2]} 12. b3 {[%clk 0:01:53.3]} 12... a6 {[%clk
0:02:39.9]} 13. Nh2 {[%clk 0:01:49]} 13... f6 {[%clk 0:02:26.3]} 14. f4 {[%clk
0:01:46.1]} 14... fxe5 {[%clk 0:02:18.1]} 15. fxe5 {[%clk 0:01:45.1]} 15... Qd7
{[%clk 0:02:15.1]} 16. Nf3 {[%clk 0:01:26.5]} 16... Bg6 {[%clk 0:02:12.6]} 17.
Bg5 {[%clk 0:01:15.5]} 17... Bxg5 {[%clk 0:01:58.3]} 18. Nxg5 {[%clk 0:01:14.2]}
18... Qe7 {[%clk 0:01:58.6]} 19. Nf3 {[%clk 0:01:12.7]} 19... Rf7 {[%clk
0:01:50.5]} 20. a4 {[%clk 0:01:08.8]} 20... Raf8 {[%clk 0:01:47.7]} 21. Nh2
{[%clk 0:00:58.5]} 21... Qb4 {[%clk 0:01:42.4]} 22. Rxf7 {[%clk 0:00:58]} 22...
Rxf7 {[%clk 0:01:41.7]} 23. Rd1 {[%clk 0:00:57]} 23... Bxc2 {[%clk 0:00:59.1]}
24. Qxc2 {[%clk 0:00:55.9]} 24... Nxd4 {[%clk 0:00:59.1]} 25. Qd3 {[%clk
0:00:56.1]} 25... Qxc3 {[%clk 0:00:57.8]} 26. Qxd4 {[%clk 0:00:54.9]} 26... Qxb3
{[%clk 0:00:57.9]} 27. Bg4 {[%clk 0:00:46.3]} 27... Re7 {[%clk 0:00:51.4]} 28.
Qc5 {[%clk 0:00:46.2]} 28... Nc8 {[%clk 0:00:42.2]} 29. a5 {[%clk 0:00:39.6]}
29... Qb5 {[%clk 0:00:39.3]} 30. Qa3 {[%clk 0:00:33.6]} 30... c5 {[%clk
0:00:38.5]} 31. Nf3 {[%clk 0:00:32.7]} 31... Na7 {[%clk 0:00:36.6]} 32. Ng5
{[%clk 0:00:31.9]} 32... Qc6 {[%clk 0:00:34.6]} 33. Qd3 {[%clk 0:00:31.3]} 33...
g6 {[%clk 0:00:34]} 34. Rf1 {[%clk 0:00:29.8]} 34... Qe8 {[%clk 0:00:15.8]} 35.
Qf3 {[%clk 0:00:28.4]} 35... h6 {[%clk 0:00:12.8]} 36. Nxe6 {[%clk 0:00:24.4]}
36... h5 {[%clk 0:00:12.2]} 37. Ng5 {[%clk 0:00:16.6]} 37... hxg4 {[%clk
0:00:11.5]} 38. Qxg4 {[%clk 0:00:17.5]} 38... Nc6 {[%clk 0:00:10.9]} 39. e6
{[%clk 0:00:17.4]} 39... Nd4 {[%clk 0:00:10]} 40. Nf7 {[%clk 0:00:15.9]} 40...
Rxe6 {[%clk 0:00:08.4]} 41. Nh6+ {[%clk 0:00:16]} 41... Kg7 {[%clk 0:00:08.8]}
42. Nf5+ {[%clk 0:00:15.1]} 42... Nxf5 {[%clk 0:00:08]} 43. Rxf5 {[%clk
0:00:16]} 43... Re1+ {[%clk 0:00:07.9]} 44. Kh2 {[%clk 0:00:16.9]} 44... Qb8+
{[%clk 0:00:07.1]} 45. g3 {[%clk 0:00:16.4]} 45... Qe8 {[%clk 0:00:07]} 46. Rf2
{[%clk 0:00:15.6]} 46... Qe6 {[%clk 0:00:06.6]} 47. Qf4 {[%clk 0:00:15.7]} 47...
Qe7 {[%clk 0:00:06.1]} 48. Qd2 {[%clk 0:00:14.9]} 48... Re5 {[%clk 0:00:05.4]}
49. Qf4 {[%clk 0:00:14.7]} 49... d4 {[%clk 0:00:05.4]} 50. g4 {[%clk 0:00:14.5]}
50... Re2 {[%clk 0:00:05.6]} 51. Kg2 {[%clk 0:00:14.3]} 51... Rxf2+ {[%clk
0:00:05.7]} 52. Kxf2 {[%clk 0:00:15.2]} 52... Qe6 {[%clk 0:00:05.6]} 53. g5
{[%clk 0:00:15.1]} 53... Qf5 {[%clk 0:00:05.5]} 54. Qxf5 {[%clk 0:00:15.1]}
54... gxf5 {[%clk 0:00:05.9]} 55. h4 {[%clk 0:00:16]} 55... c4 {[%clk
0:00:05.8]} 56. h5 {[%clk 0:00:15.4]} 56... c3 {[%clk 0:00:05.6]} 57. h6+ {[%clk
0:00:16.3]} 57... Kg6 {[%clk 0:00:05.4]} 58. Ke2 {[%clk 0:00:17.2]} 58... f4
{[%clk 0:00:05.6]} 59. Kd3 {[%clk 0:00:17.3]} 59... f3 {[%clk 0:00:05.8]} 60.
Kxd4 {[%clk 0:00:18.2]} 60... f2 {[%clk 0:00:06.2]} 61. h7 {[%clk 0:00:19.1]}
61... Kxh7 {[%clk 0:00:05.9]} 62. g6+ {[%clk 0:00:17.9]} 62... Kg7 {[%clk
0:00:06.1]} 63. Kxc3 {[%clk 0:00:18.8]} 63... f1=Q {[%clk 0:00:06.5]} 0-1

[Event "*** SCC Grand Prix: Titled Tuesday Blitz"]
[Site "Chess.com"]
[Date "2020.06.23"]
[Round "3"]
[White "GM_LOADING"]
[Black "Antipov_Mikhail_Al"]
[Result "0-1"]
[WhiteElo "2565"]
[BlackElo "2811"]
[TimeControl "180+1"]
[EndTime "10:30:15 PDT"]
[Termination "Antipov_Mikhail_Al won by resignation"]

1. e4 {[%clk 0:03:00.9]} 1... e5 {[%clk 0:02:59.6]} 2. Nf3 {[%clk 0:02:56.4]}
2... Nc6 {[%clk 0:02:59.9]} 3. Bc4 {[%clk 0:02:56.1]} 3... Nf6 {[%clk
0:02:57.6]} 4. d3 {[%clk 0:02:55.8]} 4... Bc5 {[%clk 0:02:57.2]} 5. O-O {[%clk
0:02:55.9]} 5... d6 {[%clk 0:02:53.5]} 6. c3 {[%clk 0:02:55.7]} 6... a6 {[%clk
0:02:53.6]} 7. a4 {[%clk 0:02:55.5]} 7... h6 {[%clk 0:02:50.8]} 8. Re1 {[%clk
0:02:55.8]} 8... Ba7 {[%clk 0:02:50]} 9. Nbd2 {[%clk 0:02:52.8]} 9... g5 {[%clk
0:02:46.9]} 10. Nf1 {[%clk 0:02:46.8]} 10... g4 {[%clk 0:02:42.4]} 11. N3d2
{[%clk 0:02:47]} 11... h5 {[%clk 0:02:28.7]} 12. Nb1 {[%clk 0:02:30.1]} 12... g3
{[%clk 0:01:28.8]} 13. Nxg3 {[%clk 0:02:28.2]} 13... Ng4 {[%clk 0:01:29]} 14.
Be3 {[%clk 0:02:12.5]} 14... Bxe3 {[%clk 0:01:08.2]} 15. fxe3 {[%clk 0:01:44.5]}
15... Qh4 {[%clk 0:01:07.5]} 16. Qf3 {[%clk 0:01:09.7]} 16... Qxh2+ {[%clk
0:00:59.4]} 17. Kf1 {[%clk 0:01:09.9]} 17... Be6 {[%clk 0:01:00.1]} 18. Ke2
{[%clk 0:01:03.3]} 18... h4 {[%clk 0:00:21]} 19. Rh1 {[%clk 0:00:32.3]} 19...
hxg3 {[%clk 0:00:19.5]} 20. Rxh2 {[%clk 0:00:26.3]} 20... gxh2 {[%clk
0:00:14.2]} 21. Nd2 {[%clk 0:00:26.8]} 21... Nxe3 {[%clk 0:00:12]} 22. Kxe3
{[%clk 0:00:19.1]} 22... h1=Q {[%clk 0:00:11.2]} 23. Rxh1 {[%clk 0:00:19]} 23...
Rxh1 {[%clk 0:00:12.1]} 24. Qf6 {[%clk 0:00:10.2]} 24... Kd7 {[%clk 0:00:11.6]}
25. Bxe6+ {[%clk 0:00:09.8]} 25... fxe6 {[%clk 0:00:12.5]} 26. Nf3 {[%clk
0:00:10.3]} 26... Rg8 {[%clk 0:00:11.1]} 27. Ng5 {[%clk 0:00:08.6]} 27... Nd8
{[%clk 0:00:09.9]} 28. Nf7 {[%clk 0:00:02.2]} 28... Rh7 {[%clk 0:00:04.6]} 29.
Nxd8 {[%clk 0:00:02.1]} 29... Rxd8 {[%clk 0:00:05.5]} 30. g4 {[%clk 0:00:02.5]}
30... Rg8 {[%clk 0:00:05.2]} 31. g5 {[%clk 0:00:03.1]} 31... Rhg7 {[%clk
0:00:05.1]} 32. d4 {[%clk 0:00:03.6]} 32... exd4+ {[%clk 0:00:04.9]} 33. cxd4
{[%clk 0:00:03.8]} 33... a5 {[%clk 0:00:04]} 34. Kd3 {[%clk 0:00:03.5]} 34... b6
{[%clk 0:00:04.4]} 35. Kc4 {[%clk 0:00:03.7]} 35... d5+ {[%clk 0:00:04.6]} 36.
exd5 {[%clk 0:00:02.4]} 36... exd5+ {[%clk 0:00:05.5]} 37. Kxd5 {[%clk
0:00:02.7]} 37... Rxg5+ {[%clk 0:00:05.5]} 38. Kc4 {[%clk 0:00:03.6]} 38... R8g7
{[%clk 0:00:05.6]} 39. b3 {[%clk 0:00:03.1]} 39... Kc8 {[%clk 0:00:05.2]} 40.
Qf8+ {[%clk 0:00:03.3]} 40... Kb7 {[%clk 0:00:05.5]} 41. Qf3+ {[%clk 0:00:04]}
41... c6 {[%clk 0:00:05.2]} 42. Qf6 {[%clk 0:00:03.7]} 42... R5g6 {[%clk
0:00:05.2]} 43. Qf4 {[%clk 0:00:03.8]} 43... Rd7 {[%clk 0:00:05]} 44. Qf5 {[%clk
0:00:04]} 44... Rgd6 {[%clk 0:00:05.2]} 45. Qe5 {[%clk 0:00:04.5]} 45... Rd5
{[%clk 0:00:04.7]} 46. Qe4 {[%clk 0:00:04.5]} 46... Kc7 {[%clk 0:00:04.1]} 47.
Qf4+ {[%clk 0:00:04.3]} 47... Kc8 {[%clk 0:00:04.4]} 48. Qe4 {[%clk 0:00:04.5]}
48... Kd8 {[%clk 0:00:02.9]} 49. Qh4+ {[%clk 0:00:04.1]} 49... Kc7 {[%clk
0:00:03.2]} 50. Qf4+ {[%clk 0:00:04.4]} 50... Kb7 {[%clk 0:00:03.8]} 51. Qe4
{[%clk 0:00:04.8]} 51... Rxd4+ {[%clk 0:00:03.9]} 52. Qxd4 {[%clk 0:00:05.3]}
52... Rxd4+ {[%clk 0:00:04.8]} 53. Kxd4 {[%clk 0:00:06.2]} 53... Kc7 {[%clk
0:00:05.3]} 54. Ke5 {[%clk 0:00:06.8]} 54... Kd7 {[%clk 0:00:05.7]} 55. Kd4
{[%clk 0:00:05.8]} 55... Kd6 {[%clk 0:00:06.1]} 56. Kc4 {[%clk 0:00:06.4]} 56...
Ke5 {[%clk 0:00:06.6]} 57. b4 {[%clk 0:00:04.3]} 57... axb4 {[%clk 0:00:06.7]}
58. Kxb4 {[%clk 0:00:05.2]} 58... Kd4 {[%clk 0:00:07]} 59. Kb3 {[%clk
0:00:05.5]} 59... c5 {[%clk 0:00:06.9]} 60. Kc2 {[%clk 0:00:06.1]} 60... Kc4
{[%clk 0:00:07.4]} 0-1